Cogmind - Beta 15 *** ADVENTURER MODE // 2025.06.07 @ 00:18:11 Player: tcfire Result: Destroyed by G-47 Trooper with Particle Gun Performance ------------- Evolutions (2) 1000 Regions Visited (4) 800 Robots Destroyed (19) 95 Value Destroyed (585) 585 Prototype IDs (2) 40 Alien Tech Used (0) 0 Bonus (0) 0 TOTAL SCORE: 2520 Bonus ------- None Cogmind --------- Core Integrity 0/550 Matter 214/300 Energy 100/100 System Corruption 0% Temperature Cool (9) Movement Core (50) Location -8/Materials Parts ------- > --- POWER (1) -------- (None) > --- PROPULSION (2) --- (None) > --- UTILITY (6) ------ Transport Network Coupler > --- WEAPON (2) ------- (None) > --- INVENTORY (5) ---- Visual Processing Unit Improved Terrain Scanner Peak State ------------ > --- POWER ------------ Light Ion Engine > --- PROPULSION ------- Improved Aluminum Leg Improved Aluminum Leg > --- UTILITY ---------- Heat Sink Small Storage Unit Weight Redist. System Improved Terrain Scanner Transport Network Coupler > --- WEAPON ----------- Improved Medium Laser Flak Cannon > --- INVENTORY -------- Improved Aluminum Leg Improved Aluminum Leg Visual Processing Unit Terrain Scanner Improved Medium Laser [Rating: 20] Favorites ----------- Power Light Ion Engine Engine Light Ion Engine Propulsion Improved Aluminum Leg Leg Improved Aluminum Leg Utility Small Storage Unit Device Heat Sink Storage Small Storage Unit Processor Transport Network Coupler Weapon Improved Medium Laser Energy Gun Improved Medium Laser Ballistic Gun Enhanced Autogun Ballistic Cannon Flak Cannon Build | -11 -10 -10 -9 -8 ------- Run | Yrd Mat Min Mat Mat Slots Evolved 4 | . . . 2 2 Power . | . . . . . Propulsion . | . . . . . Utility 4 | . . . 2 2 Weapon . | . . . . . Parts Attached 20 | 6 4 . 2 8 Power 1 | 1 . . . . Engine 1 | 1 . . . . Core . | . . . . . Reactor . | . . . . . Propulsion 6 | 2 2 . . 2 Treads . | . . . . . Leg 6 | 2 2 . . 2 Wheel . | . . . . . Hover . | . . . . . Flight . | . . . . . Utility 6 | 1 . . 2 3 Device 4 | . . . 2 2 Storage 1 | 1 . . . . Processor 1 | . . . . 1 Hackware . | . . . . . Protection . | . . . . . Artifact . | . . . . . Weapon 7 | 2 2 . . 3 Energy Gun 4 | 2 2 . . . Energy Cannon . | . . . . . Ballistic Gun 1 | . . . . 1 Ballistic Cannon 2 | . . . . 2 Launcher . | . . . . . Special Weapon . | . . . . . Impact Weapon . | . . . . . Slashing Weapon . | . . . . . Piercing Weapon . | . . . . . Special Melee Weapon . | . . . . . Unidentified Prototypes 2 | . 1 . . 1 Parts Lost 12 | . . . . 12 Power 1 | . . . . 1 Propulsion 4 | . . . . 4 Utility 3 | . . . . 3 Weapon 4 | . . . . 4 Highest Loss Streak 7 | . . . . 7 To Critical Strikes 1 | . . . . 1 Average Backups 3 | . 3 4 3 3 Power . | . . . . . Propulsion 1 | . 1 2 2 1 Utility 1 | . . 1 . 1 Weapon . | . . 1 1 . Tool/Special . | . . . . . Unused Backups 2 | . . . . 2 Power . | . . . . . Propulsion . | . . . . . Utility 2 | . . . . 2 Weapon . | . . . . . Tool/Special . | . . . . . Average Slot Usage (%) 74 | . 85 85 87 55 Engine 10 | . 14 14 11 4 Leg 20 | . 28 28 22 11 Device 8 | . . . 21 14 Storage 10 | . 14 14 11 6 Processor 2 | . . . . 7 Energy Gun 19 | . 28 28 22 6 Ballistic Cannon 1 | . . . . 4 Peak Build Rating 20 | 6 12 12 14 20 Average Rating 11 | 4 11 12 13 11 On Entrance 8 | . 6 12 12 14 Naked Turns . | . . . . . Heaviest Build 19 | 10 14 14 16 19 Greatest Support 32 | 20 26 26 26 32 Greatest Overweight (x) 1 | . . . . 1 Average Overweight (x) . | . . . . . Largest Inventory Capacity 8 | 8 8 8 8 8 Average Capacity 7 | 7 8 8 8 7 Most Carried 6 | 5 4 5 4 6 Average Carried 3 | . 3 4 3 3 Final Capacity 8 | 8 8 8 8 5 Final Carried 5 | . 4 5 4 2 Class Distribution -------------------- 100% | Mutant Dominant Class ---------------- Mutant | -10/Materials Mutant | -10/Mines Mutant | -9/Materials Mutant | -8/Materials Resources | -11 -10 -10 -9 -8 ----------- Run | Yrd Mat Min Mat Mat Matter Collected 406 | 167 14 119 20 86 Remotely . | . . . . . Salvage Created 603 | . 14 86 202 301 Parts 30 | . 2 3 11 14 Haulers Intercepted 1 | . . . . 1 Recyclers Shooed . | . . . . . Parts Field Recycled . | . . . . . Retrieved Matter . | . . . . . Parts Self-Destructed . | . . . . . Prevented . | . . . . . Kills | -11 -10 -10 -9 -8 ------- Run | Yrd Mat Min Mat Mat Combat Hostiles Destroyed 15 | . . 2 6 7 Guns 11 | . . 2 6 3 Cannons 4 | . . . . 4 Classes Destroyed 5 | . 1 1 1 2 Hauler 1 | . . . . 1 Watcher 3 | . 1 . 2 . Swarmer 4 | . . . 4 . Grunt 8 | . . 2 2 4 Sentry 3 | . . . . 3 Best Kill Streak 7 | . 1 2 4 7 Combat Bots Only 7 | . . 2 4 7 Max Kills in Single Turn 1 | . 1 1 1 1 Gunslinging . | . . . . . Exploded . | . . . . . Melee . | . . . . . Uniques/NPCs Destroyed . | . . . . . Combat | -11 -10 -10 -9 -8 -------- Run | Yrd Mat Min Mat Mat Hostile Shots Fired 210 | . . 7 30 173 Missed 69 | . . 3 14 52 Hits 141 | . . 4 16 121 Projectile 141 | . . 4 16 121 Critical Strikes 9 | . . . 2 7 Damage Taken 1652 | . . 45 97 1510 Core 584 | . . 12 18 554 Absorbed by Shields . | . . . . . Ignored by Resistances 466 | . . 13 32 421 Core Remaining (%) 96 | 100 . 95 95 . Volleys Fired 42 | . 3 5 10 24 Largest 2 | . 2 2 2 2 Hottest 112 | . 112 112 112 93 Shots Fired 82 | . 6 10 20 46 Gun 58 | . 6 10 20 22 Cannon 24 | . . . . 24 Launcher . | . . . . . Special . | . . . . . Kinetic 24 | . . . . 24 Thermal 58 | . 6 10 20 22 Explosive . | . . . . . Electromagnetic . | . . . . . Robot Hit Streak 26 | . 1 5 5 26 Robot Miss Streak 4 | . 1 1 1 4 Penetration Max . | . . . . . Secondary Targets 2 | . . 1 1 . Max Gunslinging Chain 1 | . . 1 1 . Shots Hit Robots 62 | . 3 7 15 37 Core Hits 51 | . 1 3 9 38 Critical Kills . | . . . . . Critical Parts Destroyed . | . . . . . Critical Strikes 6 | . 1 1 1 3 Burn 6 | . 1 1 1 3 Melee Attacks . | . . . . . Impact . | . . . . . Slashing . | . . . . . Piercing . | . . . . . Sneak Attacks . | . . . . . Combat Hostiles . | . . . . . Follow-up Attacks . | . . . . . Damage Inflicted 1348 | . 52 119 254 923 Guns 716 | . 52 119 254 291 Cannons 622 | . . . . 622 Explosions . | . . . . . Melee . | . . . . . Ramming 10 | . . . . 10 Kinetic 622 | . . . . 622 Thermal 716 | . 52 119 254 291 Explosive . | . . . . . Electromagnetic . | . . . . . Impact . | . . . . . Slashing . | . . . . . Piercing . | . . . . . Highest Corruption . | . . . . . Average Corruption . | . . . . . Corruption Purged . | . . . . . Corruption Blocked . | . . . . . Overload Shots . | . . . . . Overflow Damage . | . . . . . Projectiles . | . . . . . Explosions . | . . . . . Melee . | . . . . . Knockbacks 9 | . . . . 9 Impact . | . . . . . Kinetic 9 | . . . . 9 Secondary . | . . . . . Self-Inflicted Damage 1 | . . . . 1 Shots . | . . . . . Rammed 1 | . . . . 1 Targets Rammed 3 | . . . . 3 Kicked 2 | . . . . 2 Crushed . | . . . . . Highest Temperature 253 | . 102 253 24 115 Average Temperature 46 | . 46 116 12 21 Received Heat Transfer 1062 | . . 36 . 1026 Siege Activations . | . . . . . Martial Activations . | . . . . . Shielding Activations . | . . . . . Robots Disrupted . | . . . . . Combat Hostiles . | . . . . . Robots Corrupted . | . . . . . Combat Hostiles . | . . . . . Parts Fried . | . . . . . Impact Corruptions . | . . . . . Robots Melted . | . . . . . Combat Hostiles . | . . . . . Parts Melted 5 | . . 2 2 1 Heat Transferred 1998 | . 185 333 629 851 Parts Sabotaged . | . . . . . Parts Stolen . | . . . . . Parts Stripped . | . . . . . Power Chain Reactions . | . . . . . Alert | -11 -10 -10 -9 -8 ------- Run | Yrd Mat Min Mat Mat Maximum Alert Level 1 | . . . . 1 Low Security (%) 97 | 100 100 100 100 91 Level 1 2 | . . . . 8 Level 2 . | . . . . . Level 3 . | . . . . . Level 4 . | . . . . . Level 5 . | . . . . . High Security . | . . . . . Max Security . | . . . . . Peak Influence 230 | . 7 40 123 230 Initial 36 | . . . . 36 Average 35 | . . 9 67 66 Influence Increases 682 | . 7 50 163 462 Destroy 0b10 Robot/C 300 | . . 40 120 140 Destroy 0b10 Robot/NC 20 | . 5 . 10 5 Destroy Leader 68 | . 2 10 24 32 Disable Machine 9 | . . . 9 . Lose Combat Pursuer 285 | . . . . 285 Influence Decreases 462 | . 7 50 60 345 Entered New Map 67 | . . . . 67 Time Decay 275 | . 7 50 60 158 Lost Part 120 | . . . . 120 Squads Dispatched 3 | . . . . 3 Investigation . | . . . . . Extermination . | . . . . . Reinforcement . | . . . . . Assault . | . . . . . Garrison 3 | . . . . 3 Intercept . | . . . . . Searches Triggered . | . . . . . Construction Impeded . | . . . . . Haulers Reinforced . | . . . . . Active Scanning Responses . | . . . . . Cargo Convoy Interrupts . | . . . . . Stealth | -11 -10 -10 -9 -8 --------- Run | Yrd Mat Min Mat Mat Distress Signals 4 | . . . 1 3 Communications Jammed . | . . . . . Distress Signals . | . . . . . Times Spotted 50 | . 2 2 9 37 Peak Tracking Total 15 | . 1 2 5 15 Tactical Retreats 5 | . . . . 5 Traps | -11 -10 -10 -9 -8 ------- Run | Yrd Mat Min Mat Mat Traps Triggered 2 | . 2 . . . Indirectly . | . . . . . Trap Hack Attempts . | . . . . . Triggered . | . . . . . Disarmed . | . . . . . Reprogrammed . | . . . . . Reused . | . . . . . Traps Extracted . | . . . . . Installed . | . . . . . Triggered . | . . . . . Machines | -11 -10 -10 -9 -8 ---------- Run | Yrd Mat Min Mat Mat Machines Disabled 1 | . . . 1 . Max in Single Turn 1 | . . . 1 . Machines Repaired . | . . . . . Machines Dismantled . | . . . . . Machines Sabotaged . | . . . . . Overloaded Fab Kills . | . . . . . Hacking | -11 -10 -10 -9 -8 --------- Run | Yrd Mat Min Mat Mat Machines Accessed . | . . . . . Terminals . | . . . . . Fabricators . | . . . . . Repair Stations . | . . . . . Recycling Units . | . . . . . Scanalyzers . | . . . . . Garrison Access . | . . . . . Total Hacks . | . . . . . Successful . | . . . . . Failed . | . . . . . Catastrophic . | . . . . . Database Lockouts . | . . . . . Manual . | . . . . . Terminals . | . . . . . Fabricators . | . . . . . Repair Stations . | . . . . . Recycling Units . | . . . . . Scanalyzers . | . . . . . Garrison Access . | . . . . . Terminal Hacks . | . . . . . Fabricator Hacks . | . . . . . Repair Station Hacks . | . . . . . Recycling Unit Hacks . | . . . . . Scanalyzer . | . . . . . Garrison Access Hacks . | . . . . . Unauthorized Hacks . | . . . . . Terminals . | . . . . . Fabricators . | . . . . . Repair Stations . | . . . . . Recycling Units . | . . . . . Scanalyzers . | . . . . . Garrison Access . | . . . . . Data Cores Recovered . | . . . . . Used . | . . . . . Hacking Detections . | . . . . . Full Trace Events . | . . . . . Feedback Events . | . . . . . Feedback Blocked . | . . . . . Robot Schematics Acquired . | . . . . . Robots Built . | . . . . . Authchips . | . . . . . Time . | . . . . . Total Robot Build Rating . | . . . . . Part Schematics Acquired . | . . . . . Parts Built . | . . . . . Authchips . | . . . . . Time . | . . . . . Total Part Build Rating . | . . . . . Parts Repaired . | . . . . . Time . | . . . . . Parts Recycled . | . . . . . Recycled Matter . | . . . . . Retrieved Matter . | . . . . . Retrieved Components . | . . . . . Parts Scanalyzed . | . . . . . Part Schematics Acquired . | . . . . . Parts Damaged . | . . . . . Bothacking | -11 -10 -10 -9 -8 ------------ Run | Yrd Mat Min Mat Mat Used RIF Installer . | . . . . . Robots Hacked . | . . . . . Non-combat . | . . . . . Combat . | . . . . . Robot Hacks Applied . | . . . . . Relay Couplers Released . | . . . . . Fabnet Peak Effective % . | . . . . . Robots Rewired . | . . . . . Allies Hacked . | . . . . . Hacks Repelled . | . . . . . Allies | -11 -10 -10 -9 -8 -------- Run | Yrd Mat Min Mat Mat Total Allies . | . . . . . Largest Group . | . . . . . Highest-Rated Group . | . . . . . Highest-Rated Ally . | . . . . . Total Orders . | . . . . . Ally Attacks . | . . . . . Total Damage . | . . . . . Kills . | . . . . . Allies Corrupted . | . . . . . Allies Melted . | . . . . . Intel | -11 -10 -10 -9 -8 ------- Run | Yrd Mat Min Mat Mat Active Infowar (turns) 469 | . . . 144 325 Terrain 310 | . . . 144 166 T.N.C. 267 | . . . . 267 Robot Analysis Total . | . . . . . Derelict Logs Recovered . | . . . . . Drone Launches . | . . . . . Drone Recoveries . | . . . . . Exploration | -11 -10 -10 -9 -8 ------------- Run | Yrd Mat Min Mat Mat Turns Passed 933 | 64 187 212 145 325 Spaces Moved 751 | 51 129 164 94 313 Core 225 | 17 . . . 208 Treads . | . . . . . Legs 526 | 34 129 164 94 105 Wheels . | . . . . . Hover . | . . . . . Flight . | . . . . . Fastest Speed 50 | 50 120 120 120 50 Average Speed 99 | 96 120 120 120 73 Slowest Speed 120 | 120 120 120 120 120 Overloaded Moves . | . . . . . Propulsion Burnouts . | . . . . . Robots Hopped . | . . . . . Potential Cave-ins . | . . . . . Cave-ins Triggered . | . . . . . Exploration Rate (%) 25 | 4 27 45 17 36 Regions Visited 4 Branch Regions 1 Pre-discovered Areas . | . . . . . Known Exits Taken . | . . . . . Unknown Exits Taken 4 | 1 1 1 1 . Scrap Searched 1 | . . 1 . . Spaces Dug . | . . . . . Terrain Destroyed . | . . . . . Melee . | . . . . . Projectile . | . . . . . AOE . | . . . . . Terrain Rammed . | . . . . . Walls Destroyed . | . . . . . Machines Disabled . | . . . . . Actions | -11 -10 -10 -9 -8 --------- Run | Yrd Mat Min Mat Mat Total 856 | 65 155 169 106 361 Wait 11 | 3 8 . . . Move 747 | 50 128 163 93 313 Hop . | . . . . . Pick Up 23 | 6 8 1 1 7 Fast Attach . | . . . . . Attach 16 | 6 1 . 2 7 Detach . | . . . . . Swap 6 | . 3 . . 3 Drop 8 | . 4 . . 4 Fire 42 | . 3 5 10 24 Melee . | . . . . . Ram 1 | . . . . 1 Kick 2 | . . . . 2 Crush . | . . . . . Escape Stasis . | . . . . . Rewire . | . . . . . Trap . | . . . . . Miscellaneous . | . . . . . Route ------- -11/Scrapyard -10/Materials -10/Mines -9/Materials -8/Materials History --------- Turn | Location | Event 4 | -11/Scrapyard | Discovered new exit (range 15) 65 | -11/Scrapyard | Entered Materials 235 | -10/Materials | Discovered new exit (range 13) 252 | -10/Materials | Entered Mines 305 | -10/Mines | Build established: Mutant 441 | -10/Mines | Discovered new exit (range 12) 464 | -10/Mines | Entered Materials 464 | -9/Materials | Evolved 2 slots: Utility x2 578 | -9/Materials | Discovered new exit (range 16) 609 | -9/Materials | Entered another Materials area 609 | -8/Materials | Evolved 2 slots: Utility x2 711 | -8/Materials | Garrison activated, responded to threat 792 | -8/Materials | Destroyed 7 combat bots 823 | -8/Materials | Lost 7 parts (1p2n2u2w) 826 | -8/Materials | Core integrity fell below 50% 858 | -8/Materials | Lost 4 parts (2n2w) 860 | -8/Materials | Core integrity fell below 20% 934 | -8/Materials | Destroyed by G-47 Trooper with Particle Gun Last Messages --------------- 00816_ Critical hit (Burn: +37). 00819_ G-47 Trooper suffers critical hit (Burn). 00819_ Kicked G-50 Soldier. 00824_ Flak Cannon destroyed. 00826_ Imp. Aluminum Leg destroyed. 00826_ Critical hit (Burn: +37). 00827_ Imp. Aluminum Leg destroyed. 00827_ Critical hit (Destroy). 00827_ Imp. Medium Laser destroyed. 00829_ Critical hit (Burn: +37). 00830_ Dropped Sml. Storage Unit. 00831_ W-25 Informer distress signal alerts nearby ally. 00896_ Acquired 23 matter. 00911_ Y-45 Defender emerges from the garrison. 00913_ Heat Sink destroyed. 00927_ W-25 Informer distress signal alerts nearby ally. 00933_ Slammed into R-06 Scavenger. Map ----- +----------------------------------------------------+ | ??????????????# # #??????# #?????????? | | ??????????????# / #??????# #?????????? | | ??????????????# # #?##???# ##????????? | | ??????????????# # """ """ #??????# #?????????? | | ??????????????# # """ """ #?#????# #?????????? | | ??????????????# # """ """ #?? ???# #?????#???? | | ??????????????# #########"### ???T?# #?????????? | | ??????????????# #?????### ###????? # ##????##### | | ??????????????# ####### #?? # #???? | | ?????????????## # # ####? | | ????????? % " # # = | | ????????? % =%a # # # | | ???????????#### ####### a # """ # " + | | ??????????????# ??????## ##?""" # # | | ??????????????# ? ?????# #???"" ## ## | | ?????????? ???? +?? ???#g ##???"??## #?? | | ?????????????#????? ?????# #????????# #?? | | ??????????????#????????#?# #? ?????## #???##### | | ?????????????????????????# #?######## #???????? | | ???????????????????????#?# #?# !=] # #???????? | | ???????????????? ??????#?# #?# =] # # ??? ??? | | ???????????????????????###w ### ] + + ??? ??? | | ????????????????????????#% + # #???????? | | ???????????????????#????# ###### # #??? ??? | | ???????????????#######??#r#?#??# ! # #???????? | | ???????????????# ?###@###??######## #?#?????? | | ???????????????# # rk ##???###??# ######### | | ???????????????#!! # ###### #### # "" | | ???????????????#!! + # ! = # # ""S | | ???????????????#! # # # # "" | | ???????????????# # #/ ! # # | | ????????????#########?## ## + + | | ????????????# #?????# Y## !! """ # # """ ! | | ????????????# #????## g/ !! G" # # """ | | ????????????# ####### ## ! """ #### """ ! | | ????????????# + ## #??# | | ????????????# ########+#############??######### | | ????????????# #?????? ??????????????????????? | | ????????????# #?????? ??????????????????????? | | ????????????# = #?????"" ?????????????????????? | | ????????????# #?????"" ?????????????????????? | | ????????????######????""" ????????????????????? | | ?????????????????????? ????????????????????? | | ???????????????????????######????????????????????? | | | | | | | | | | | | | +----------------------------------------------------+ Best States ------------- Heat Dissipation 41 Energy Generation 10 Energy Capacity 125 Matter Stores 300 Matter Capacity 300 Sight Range 16 Terrain Scan Range 16 Terrain Scan Density 10 Additional Mass Support 6 Resistance: KI 20 Resistance: TH 20 Resistance: EX 20 Resistance: EM 20 Resistance: I 20 Resistance: S 20 Resistance: P 20 Evasion (%) 55 Offensive Hacking 10 Item Schematics ----------------- None Robot Schematics ------------------ None Fabricated ------------ Nothing Repaired ---------- Nothing Alien Tech Used ----------------- None Achievements -------------- None Challenges ------------ None Game ------ Seed TerrabombKineticCycler Manual? 0 Play Time 00:08:29 Cumulative 33.3 hours Start 2025.06.07 @ 00:10:35 End 2025.06.07 @ 00:18:11 Sessions 1 Manual Loads 0 Difficulty Adventurer Special Mode None Game No. 38 Rogue 0 Adventurer 4 Explorer 34 Win Type - Total 1 Types 1/0/0/0/0/0/0/0/0/0 Lore% 14 Gallery% 38 Achievement% 37 Wizard Run 0 Options --------- Layout 1 ASCII 0 Keyboard 0 Movement Mouse Keybinds 0 Fullscreen 1 Font 42/SmallcapsGlow Map View 52x41 Zoom Use 0% Tactical HUD 1 Map Filters NONE Filters NONE Steam 1 RUN: a09fc8eb-9538-4a9b-a8d3-ef76774b93a6